fUSD/lending_fUSD_20250202
["ID","MTS","AMOUNT","RATE_DAILY","PERIOD"]
[351263254,1738497409758,-500.0,0.00026,30]
[351263255,1738497409782,-500.0,0.00026,30]
[351263256,1738497409805,-700.0,0.00026,30]
[351263257,1738497409829,-500.0,0.00026,30]
[351263258,1738497409853,-500.0,0.00026,30]
[351263259,1738497409878,-538.38836674,0.00026,30]
[351263260,1738497409903,-700.0,0.00026,30]
[351263261,1738497409927,-500.0,0.00026,30]
[351263262,1738497409953,-500.0,0.00026,30]
[351263263,1738497409979,-700.0,0.00026,30]
[351263264,1738497410008,-1100.0,0.00026,30]
[351263265,1738497410033,-500.0,0.00026,30]
[351263266,1738497410057,-700.0,0.00026,30]
[351263267,1738497410082,-500.0,0.00026,30]
[351263268,1738497410105,-1100.0,0.00026,30]
[351263269,1738497410129,-500.0,0.00026,30]
[351263270,1738497410153,-500.0,0.00026,30]
[351263271,1738497410177,-500.0,0.00026,30]
[351263272,1738497410200,-500.0,0.00026,30]
[351263273,1738497410224,-700.0,0.00026,30]
[351263274,1738497410248,-500.0,0.00026,30]
[351263275,1738497410272,-1100.0,0.00026,30]
[351263276,1738497410296,-500.0,0.00026,30]
[351263277,1738497410320,-700.0,0.00026,30]
[351263278,1738497410344,-500.0,0.00026,30]
[351263279,1738497410368,-1100.0,0.00026,30]
[351263280,1738497410393,-500.0,0.00026,30]
[351263281,1738497410417,-700.0,0.00026,30]
[351263282,1738497410440,-1100.0,0.00026,30]
[351263283,1738497410464,-500.0,0.00026,30]
[351263284,1738497410492,-700.0,0.00026,30]
[351263285,1738497410517,-1100.0,0.00026,30]
[351263286,1738497410542,-500.0,0.00026,30]
[351263287,1738497410566,-700.0,0.00026,30]
[351263288,1738497410592,-1100.0,0.00026,30]
[351263289,1738497410616,-500.0,0.00026,30]
[351263290,1738497410643,-700.0,0.00026,30]
[351263291,1738497410890,-1100.0,0.00026,30]
[351263292,1738497410915,-700.0,0.00026,30]
[351263293,1738497410939,-1100.0,0.00026,30]
[351263294,1738497410963,-1100.0,0.00026,30]
[351263295,1738497410990,-700.0,0.00026,30]
[351263296,1738497411014,-1100.0,0.00026,30]
[351263297,1738497411039,-700.0,0.00026,30]
[351263298,1738497411065,-1100.0,0.00026,30]
[351263299,1738497411089,-700.0,0.00026,30]
[351263300,1738497411113,-1100.0,0.00026,30]
[351263301,1738497411138,-700.0,0.00026,30]
[351263302,1738497411161,-1100.0,0.00026,30]
[351263303,1738497411186,-500.0,0.00026,30]
[351263304,1738497411209,-500.0,0.00026,30]
[351263305,1738497411233,-500.0,0.00026,30]
[351263306,1738497411257,-500.0,0.00026,30]
[351263307,1738497411283,-500.0,0.00026,30]
[351263308,1738497411313,-1071.13,0.000261,31]
[351263309,1738497411342,-1071.13,0.000261,31]
[351263310,1738497411372,-1071.13,0.000261,31]
[351263311,1738497411403,-1071.13,0.000261,31]
[351263312,1738497411432,-1071.13,0.000261,31]
[351263313,1738497411462,-1071.13,0.000261,31]
[351263314,1738497411491,-1071.13,0.000261,31]
[351263315,1738497411522,-1071.13,0.000261,31]
[351263316,1738497411553,-1071.13,0.000261,31]
[351263317,1738497411596,-1071.13,0.000261,31]
[351263318,1738497411628,-1071.13,0.000261,31]
[351263319,1738497411660,-1071.13,0.000261,31]
[351263320,1738497411690,-1071.13,0.000261,31]
[351263321,1738497411721,-1071.13,0.000261,31]
[351263322,1738497411752,-1071.13,0.000261,31]
[351263323,1738497411784,-1071.13,0.000261,31]
[351263324,1738497411816,-1071.13,0.000261,31]
[351263325,1738497411849,-1071.13,0.000261,31]
[351263326,1738497411882,-1071.13,0.000261,31]
[351263327,1738497411914,-1071.13,0.000261,31]
[351263328,1738497411946,-1071.13,0.000261,31]
[351263329,1738497411979,-1071.13,0.000261,31]
[351263330,1738497412014,-1071.13,0.000261,31]
[351263331,1738497412044,-1071.13,0.000261,31]
[351263332,1738497412072,-4447.32893526,0.000268,120]
[351263333,1738497412098,-800.0,0.00026986,120]
[351263334,1738497412124,-800.0,0.00026986,120]
[351263335,1738497412153,-308963.36,0.00027,30]
[351263336,1738497412179,-555.55555,0.00027,120]
[351263337,1738497412207,-370.37037,0.00027,120]
[351263338,1738497412233,-150.0,0.00027,120]
[351263339,1738497412259,-267.48971,0.00027,120]
[351263340,1738497412287,-267.48971,0.00027,120]
[351263341,1738497412313,-267.48971,0.00027,120]
[351263342,1738497412338,-267.48971,0.00027,120]
[351263343,1738497412364,-267.48971,0.00027,120]
[351263344,1738497412394,-267.48971,0.00027,120]
[351263345,1738497412420,-267.48971,0.00027,120]
[351263346,1738497412448,-267.48971,0.00027,120]
[351263347,1738497412475,-267.48974,0.00027,120]
[351263348,1738497412504,-150.0,0.00027,120]
[351263349,1738497412531,-150.0,0.00027,120]
[351263350,1738497412558,-158.26124,0.00027,120]
[351263351,1738497412584,-150.0,0.00027,120]
[351263352,1738497412610,-150.0,0.00027,120]
[351263353,1738497412637,-150.0,0.00027,120]
[351263354,1738497412663,-150.0,0.00027,120]
[351263355,1738497412687,-150.0,0.00027,120]
[351263356,1738497412713,-150.0,0.00027,120]
[351263357,1738497412738,-158.40542,0.00027,120]
[351263358,1738497412763,-200351.87231319,0.00027,30]
[351263359,1738497412790,-1000.0,0.00027,120]
[351263360,1738497412816,-301908.28821935,0.00027,30]
[351263361,1738497603160,850.92516007,0.00023,120]
[351263362,1738497653760,168.57,8.503e-05,2]
[351263363,1738497742834,302.0,0.00023,120]
[351263364,1738497750764,150.0,0.00022289,120]
[351263365,1738497750997,661.81991132,0.00021781,120]
[351263366,1738497791876,500.0,0.00022663,120]
[351263367,1738497797599,1021.520767,0.00022063,120]
[351263368,1738497799956,500.0,0.00022999,120]
[351263369,1738497811694,200.0,0.00022931,120]
[351263370,1738497823666,604.0,0.00023,120]
[351263371,1738497904369,500.0,0.00022739,120]
[351263372,1738497906757,378.29477452,0.00022739,120]
[351263373,1738498006435,1000.0,0.00011,11]
[351263374,1738498066367,280.35,9.893e-05,2]
[351263375,1738498081124,1158.62,8.219e-05,2]
[351263376,1738498103451,355.86653556,0.00016438,120]
[351263377,1738498126817,14029.87,9.818e-05,2]
[351263378,1738498128999,1103.42,9.818e-05,2]
[351263379,1738498136851,482.97,9.818e-05,2]
[351263380,1738498141626,172.38,0.00023,120]
[351263381,1738498157121,160.9,9.822e-05,2]
[351263382,1738498230743,150.0,0.00022974,120]
[351263401,1738498232065,-201.17809268,9.937e-05,2]
[351263402,1738498232076,-164.83035,9.937e-05,2]
[351263403,1738498232085,-1004.67420525,9.958e-05,2]
[351263404,1738498232097,-1141.07579475,9.958e-05,2]
[351263405,1738498232106,-194.91891976,0.00010037,2]
[351263406,1738498232116,-150.0,0.00010136,2]
[351263407,1738498232125,-151.92,0.00010137,2]
[351263408,1738498232134,-500.0,0.00010137,2]
[351263409,1738498232146,-500.0,0.00010137,2]
[351263410,1738498232155,-441.88630513,0.00010137,2]
[351263411,1738498232165,-481.94,0.00010179,2]
[351263412,1738498232174,-481.94,0.00010181,2]
[351263413,1738498232183,-481.94,0.00010184,2]
[351263414,1738498232193,-481.94,0.00010187,2]
[351263415,1738498232202,-481.94,0.00010189,2]
[351263416,1738498232212,-481.94,0.00010192,2]
[351263417,1738498232222,-481.94,0.00010195,2]
[351263418,1738498232231,-481.94,0.00010197,2]
[351263419,1738498232250,-481.94,0.000102,2]
[351263420,1738498232269,-481.94,0.00010203,2]
[351263421,1738498232289,-481.94,0.00010205,2]
[351263422,1738498232310,-481.94,0.00010208,2]
[351263423,1738498232321,-481.94,0.00010211,2]
[351263424,1738498232332,-481.94,0.00010213,2]
[351263425,1738498232341,-481.94,0.00010216,2]
[351263426,1738498232352,-481.94,0.00010219,2]
[351263427,1738498232362,-481.94,0.00010222,2]
[351263428,1738498232371,-481.94,0.00010224,2]
[351263429,1738498232380,-481.94,0.00010227,2]
[351263430,1738498232390,-481.94,0.0001023,2]
[351263431,1738498232399,-739.33,0.00010237,2]
[351263432,1738498232409,-740.9,0.00010255,2]
[351263433,1738498232418,-201.17809267,0.00010319,2]
[351263434,1738498232427,-1158.62,0.00010468,2]
[351263435,1738498232437,-1500.0,0.00010563,2]
[351263436,1738498232447,-6014.17440049,0.00010566,2]
[351263437,1738498232456,-165.24,0.00010624,2]
[351263438,1738498232465,-23900.0,0.00010628,2]
[351263439,1738498232474,-16932.51,0.00010646,2]
[351263440,1738498232483,-201.17809267,0.00010701,2]
[351263441,1738498232493,-250.0,0.00010801,2]
[351263442,1738498232503,-173.59,0.00010831,2]
[351263443,1738498232513,-1044.05,0.00010839,2]
[351263444,1738498232523,-200.0,0.00010848,2]
[351263445,1738498232533,-1000.0,0.00010902,2]
[351263446,1738498232543,-150.0,0.00010959,2]
[351263447,1738498232553,-5635.58,0.00010959,2]
[351263448,1738498232562,-838.42,0.00010973,2]
[351263449,1738498232572,-1852.42,0.0001099,2]
[351263450,1738498232583,-1103.42,0.00011045,2]
[351263451,1738498232592,-255.0,0.00011139,2]
[351263452,1738498232601,-456.444755,0.00011184,2]
[351263453,1738498232611,-211.05574052,0.00011211,2]
[351263454,1738498232620,-561.92,0.00011507,2]
[351263455,1738498232630,-24399.0,0.00011527,2]
[351263457,1738498232640,-431.1902491,0.00011536,2]
[351263459,1738498232649,-1200.0,0.000116,4]
[351263461,1738498232658,-2400.0,0.000117,4]
[351263462,1738498232668,-10450.7057,0.000117,2]
[351263464,1738498232678,-2150.3556641,0.0001176,2]
[351263466,1738498232687,-12403.1384,0.000118,2]
[351263468,1738498232696,-13351.7196,0.000118,2]
[351263470,1738498232706,-3700.0,0.000118,4]
[351263472,1738498232715,-4828.1826,0.000118,2]
[351263474,1738498232724,-500.0,0.0001188,2]
[351263476,1738498232735,-500.0,0.0001189,2]
[351263478,1738498232745,-1657.1299,0.000119,2]
[351263481,1738498232754,-160.64720147,0.000119,2]
[351263482,1738498232764,-515.7094,0.000119,2]
[351263485,1738498232775,-19863.3941,0.000119,2]
[351263487,1738498232784,-423.28700502,0.000119,2]
[351263488,1738498232794,-72763.9492,0.000119,2]
[351263490,1738498232803,-178.30890936,0.000119,2]
[351263492,1738498232813,-2610.4163,0.000119,2]
[351263494,1738498232823,-4900.0,0.000119,4]
[351263496,1738498232832,-175.85347849,0.000119,2]
[351263499,1738498232842,-1203.98573409,0.000119,2]
[351263500,1738498232851,-200.0,0.00011903,2]
[351263502,1738498232860,-200.0,0.00011904,2]
[351263504,1738498232870,-200.0,0.00011904,2]
[351263506,1738498232879,-240.97676227,0.0001199,2]
[351263508,1738498232889,-223.83233964,0.00011999,3]
[351263510,1738498232898,-696.97,0.00011999,2]
[351263512,1738498232907,-151.56098976,0.00011999,2]
[351263515,1738498232917,-500.0,0.00011999,2]
[351263517,1738498232927,-164.34350359,0.00011999,2]
[351263518,1738498232937,-1401.0,0.00012,2]
[351263520,1738498232946,-704194.56829898,0.00012,2]
[351263523,1738498232959,-2040.03017338,0.00012,2]
[351263525,1738498232971,-11309.79999995,0.00012,2]
[351263527,1738498232982,-2170.46711662,0.00012,2]
[351263530,1738498232998,-3615.19767817,0.00012,2]
[351263532,1738498233009,-1190.87951664,0.00012,2]
[351263536,1738498233035,-1000.0,0.00012,2]
[351263539,1738498233052,-322.51260265,0.00012,2]
[351263541,1738498233064,-6677.37169128,0.00012,2]
[351263543,1738498233076,-271.5,0.00012,2]
[351263546,1738498233098,-650.75124806,0.00012,2]
[351263548,1738498233110,-518.94,0.00012,2]
[351263550,1738498233121,-375.839991,0.00012,2]
[351263553,1738498233132,-992.28399024,0.00012,2]
[351263555,1738498233144,-2226.9,0.00012,2]
[351263559,1738498233174,-1104.29002685,0.00012,2]
[351263561,1738498233185,-381.23636774,0.00012,2]
[351263563,1738498233197,-1446.33781593,0.00012,2]
[351263565,1738498233207,-2405.1,0.00012,2]
[351263568,1738498233226,-12630.87855239,0.00012,2]
[351264026,1738498237921,-564.6899998,0.00012,2]
[351264028,1738498237931,-789550.36386324,0.00012,2]
[351264034,1738498237978,-32812.79581506,0.00012,2]
[351264037,1738498237989,-13565.0,0.00012,2]
[351264039,1738498238001,-20613.11336725,0.00012,2]
[351264041,1738498238013,-32874.96524674,0.00012,2]
[351264043,1738498238025,-293.64638165,0.00012,2]
[351264046,1738498238036,-2523.53228892,0.00012,2]
[351264052,1738498238086,-6678.63440487,0.00012,2]
[351264054,1738498238098,-17451.5913197,0.00012,2]
[351264059,1738498238140,-1959.91028657,0.00012,2]
[351264066,1738498238194,-927.17291924,0.00012,2]
[351264068,1738498238206,-282.55999991,0.00012,2]
[351264070,1738498238217,-95234.18491838,0.00012,2]
[351264072,1738498238228,-281.43023871,0.00012,2]
[351264076,1738498238255,-468.54598073,0.00012,2]
[351264078,1738498238266,-10753.9103516,0.00012,2]
[351264080,1738498238277,-1709.61961644,0.00012,2]
[351264082,1738498238289,-98127.3775,0.00012,2]
[351264085,1738498238301,-389162.57267743,0.00012,2]
[351264088,1738498238321,-21993.31902115,0.00012,2]
[351264090,1738498238337,-364316.67261019,0.00012,2]
[351264131,1738498240167,-714.8791713,0.000119,2]
[351264132,1738498240184,-1664.40066281,0.00012,2]
[351264133,1738498240202,-24000.0,0.00012,2]
[351264134,1738498240334,-396.96754944,0.00012,2]
[351264135,1738498240379,-193885.1641035,0.00012,2]
[351264136,1738498240394,-200.0,0.00012,2]
[351264137,1738498240409,-556.13,0.00012,2]
[351264138,1738498240425,-1010.0,0.00012,2]
[351264139,1738498240438,-200.0,0.0001212,2]
[351264140,1738498240452,-696.97,0.00012136,2]
[351264141,1738498240467,-1203.98573403,0.00012186,2]
[351264142,1738498240481,-200.0,0.00012241,2]
[351264143,1738498240496,-433.0,0.00012244,2]
[351264144,1738498240511,-1000.0,0.00012264,2]
[351264145,1738498240526,-1103.42,0.00012272,2]
[351264146,1738498240540,-696.97,0.00012273,2]
[351264147,1738498240556,-1000.0,0.000123,2]
[351264148,1738498240571,-394.57,0.00012329,2]
[351264149,1738498240585,-200.0,0.00012364,2]
[351264152,1738498240600,-696.97,0.0001241,2]
[351264155,1738498240615,-500.0,0.0001242,2]
[351264157,1738498240629,-161.92,0.00012471,2]
[351264159,1738498240644,-1203.98573403,0.00012471,2]
[351264162,1738498240659,-696.97,0.00012547,2]
[351264164,1738498240673,-173.59,0.00012619,2]
[351264167,1738498240687,-696.97,0.00012684,2]
[351264171,1738498240705,-1477.0,0.000127,2]
[351264174,1738498240723,-1158.62,0.00012718,2]
[351264177,1738498240739,-1203.98573403,0.00012757,2]
[351264181,1738498240754,-696.97,0.00012821,2]
[351264184,1738498240772,-150.0,0.0001294,5]
[351264186,1738498240788,-696.97,0.00012958,2]
[351264189,1738498240803,-4500.0,0.00013,2]
[351264192,1738498240818,-550.0,0.00013,2]
[351264194,1738498240834,-500.0,0.0001304,2]
[351264197,1738498240849,-1203.98573403,0.00013043,2]
[351264200,1738498240863,-696.97,0.00013095,2]
[351264202,1738498240878,-250.0,0.0001313,2]
[351264205,1738498240893,-175.85347849,0.00013206,2]
[351264207,1738498240907,-696.97,0.00013232,2]
[351264210,1738498240921,-1203.98573403,0.00013329,2]
[351264212,1738498240935,-696.97,0.00013369,2]
[351264214,1738498240950,-1103.42,0.00013499,2]
[351264217,1738498240965,-696.97,0.00013506,2]
[351264219,1738498240976,-1385.26204032,0.000136,2]
[351264221,1738498240986,-1385.26204026,0.000136,2]
[351264223,1738498240995,-1385.26204026,0.000136,2]
[351264225,1738498241004,-1385.26204026,0.000136,2]
[351264254,1738498241264,-1385.26204026,0.000136,2]
[351264259,1738498241302,-1385.26204026,0.000136,2]
[351264261,1738498241314,-1385.26204026,0.000136,2]
[351264263,1738498241323,-1385.26204026,0.000136,2]
[351264265,1738498241334,-1385.26204026,0.000136,2]
[351264268,1738498241344,-1385.26204026,0.000136,2]
[351264269,1738498241354,-1203.98573403,0.00013614,2]
[351264270,1738498241362,-1385.26204026,0.00013624,2]
[351264271,1738498241371,-1000.0,0.00013627,2]
[351264272,1738498241380,-696.97,0.00013643,2]
[351264273,1738498241389,-500.0,0.0001366,2]
[351264274,1738498241398,-500.0,0.00013699,2]
[351264275,1738498241408,-928.02,0.00013699,2]
[351264276,1738498241417,-200.0,0.00013699,2]
[351264277,1738498241426,-3071.98,0.00013699,2]
[351264279,1738498241435,-500.0,0.00013699,2]
[351264281,1738498241444,-161.92,0.00013718,2]
[351264283,1738498241454,-696.97,0.0001378,2]
[351264285,1738498241463,-1385.26204026,0.00013797,2]
[351264287,1738498241471,-1203.98573403,0.000139,2]
[351264289,1738498241481,-696.97,0.00013917,2]
[351264291,1738498241491,-1385.26204026,0.00013969,2]
[351264293,1738498241500,-1867.0,0.00013986,2]
[351264295,1738498241510,-881.0,0.00013986,2]
[351264297,1738498241519,-2952.0,0.00013986,2]
[351264299,1738498241528,-1263.0,0.00013986,2]
[351264301,1738498241537,-911.125,0.00013986,2]
[351264303,1738498241546,-543.884,0.00013986,2]
[351264305,1738498241555,-1328.312,0.00013986,2]
[351264307,1738498241565,-10263.80342084,0.00013999,2]
[351264309,1738498241574,-696.97,0.00014054,2]
[351264311,1738498241584,-150.0,0.0001411,2]
[351264313,1738498241593,-150.0,0.0001411,2]
[351264315,1738498241602,-150.0,0.0001411,2]
[351264317,1738498241611,-150.0,0.0001411,2]
[351264319,1738498241621,-150.0,0.0001411,2]
[351264321,1738498241630,-150.0,0.0001411,2]
[351264323,1738498241639,-150.0,0.0001411,2]
[351264325,1738498241648,-150.0,0.0001411,2]
[351264327,1738498241657,-150.0,0.0001411,2]
[351264329,1738498241666,-150.0,0.0001411,2]
[351264331,1738498241675,-248.752,0.00014125,2]
[351264333,1738498241685,-1006.0,0.00014125,2]
[351264335,1738498241694,-3910.0,0.00014125,2]
[351264337,1738498241703,-1108.0,0.00014125,2]
[351264339,1738498241713,-1385.26204026,0.00014141,2]
[351264341,1738498241723,-1203.98573403,0.00014186,2]
[351264343,1738498241732,-696.97,0.00014191,2]
[351264345,1738498241742,-500.0,0.0001429,2]
[351264347,1738498241751,-1385.26204026,0.00014314,2]
[351264349,1738498241760,-696.97,0.00014328,2]
[351264351,1738498241769,-740.9,0.00014358,2]
[351264353,1738498241779,-696.97,0.00014465,2]
[351264355,1738498241788,-1203.98573403,0.00014471,2]
[351264357,1738498241797,-1385.26204026,0.00014486,2]
[351264359,1738498241806,-175.85347849,0.00014512,2]
[351264361,1738498241816,-250.0,0.00014566,2]
[351264363,1738498241825,-179.03,0.00014566,2]
[351264365,1738498241835,-696.97,0.00014602,2]
[351264367,1738498241844,-152.0,0.0001462,3]
[351264369,1738498241854,-1385.26204026,0.00014659,2]
[351264371,1738498241862,-1103.42,0.00014726,2]
[351264373,1738498241871,-696.97,0.00014739,2]
[351264375,1738498241880,-1203.98573403,0.00014757,2]
[351264377,1738498241889,-169.0,0.00014766,2]
[351264379,1738498241898,-200.0,0.00014766,2]
[351264381,1738498241907,-150.0,0.00014766,2]
[351264383,1738498241916,-161.183,0.00014766,2]
[351264385,1738498241925,-180.302,0.00014766,2]
[351264387,1738498241934,-167.282,0.00014766,2]
[351264389,1738498241943,-176.752,0.00014766,2]
[351264391,1738498241952,-252.715,0.00014766,2]
[351264393,1738498241963,-154.69,0.00014766,2]
[351264395,1738498241972,-200.93,0.00014766,2]
[351264397,1738498241982,-1272.0,0.00014766,2]
[351264399,1738498241991,-2022.0,0.00014766,2]
[351264401,1738498242000,-568.0,0.00014766,2]
[351264403,1738498242008,-726.753,0.00014766,2]
[351264405,1738498242017,-150.0,0.00014766,2]
[351264407,1738498242026,-694.68,0.00014767,7]
[351264409,1738498242036,-694.68,0.00014767,7]
[351264411,1738498242045,-694.68,0.00014767,7]
[351264413,1738498242054,-694.68,0.00014767,7]
[351264415,1738498242064,-1385.26204026,0.00014831,2]
[351264417,1738498242074,-696.97,0.00014876,2]
[351264419,1738498242084,-500.0,0.0001491,2]
[351264421,1738498242093,-161.92,0.00014965,2]
[351264423,1738498242102,-1158.62,0.00014967,2]
[351264425,1738498242111,-1000.0,0.0001499,2]
[351264427,1738498242120,-1759.0,0.00015,2]
[351264429,1738498242130,-600.0,0.00015,2]
[351264431,1738498242139,-1385.26204026,0.00015003,2]
[351264433,1738498242148,-696.97,0.00015013,2]
[351264435,1738498242158,-694.68,0.00015041,7]
[351264437,1738498242167,-694.68,0.00015041,7]
[351264439,1738498242176,-1203.98573403,0.00015043,2]
[351264441,1738498242185,-1246.19,0.00015068,2]
[351264443,1738498242194,-300.0,0.00015068,2]
[351264445,1738498242203,-697.1435347,0.0001515,2]
[351264447,1738498242213,-1385.26204026,0.00015176,2]
[351264448,1738498242222,-984.28,0.00015201,2]
[351264450,1738498242231,-299.91,0.00015201,2]
[351264452,1738498242242,-298.51,0.00015201,2]
[351264453,1738498242254,-298.51,0.00015201,2]
[351264455,1738498242263,-298.51,0.00015201,2]
[351264457,1738498242272,-694.68,0.00015315,7]
[351264459,1738498242282,-694.68,0.00015315,7]
[351264460,1738498242291,-1203.98573403,0.00015329,2]
[351264462,1738498242300,-1385.26204026,0.00015348,2]
[351264463,1738498242309,-1604.0,0.000154,2]
[351264465,1738498242318,-7226.0,0.000155,2]
[351264467,1738498242329,-5004.0,0.000155,3]
[351264469,1738498242340,-194.527,0.000155,2]
[351264470,1738498242349,-2942.879,0.000155,2]
[351264472,1738498242358,-6100.0,0.000155,5]
[351264474,1738498242367,-1385.26204026,0.00015521,2]
[351264476,1738498242376,-694.68,0.00015589,7]
[351264477,1738498242385,-694.68,0.00015589,7]
[351264479,1738498242394,-13764.12503026,0.000156,2]
[351264480,1738498242403,-1200.0,0.000156,5]
[351264482,1738498242412,-1203.98573403,0.00015614,2]
[351264484,1738498242422,-156.711277,0.00015672,2]
[351264486,1738498242431,-1385.26204026,0.00015693,2]
[351264488,1738498242440,-1388.0,0.00015698,2]
[351264489,1738498242449,-1388.0,0.00015698,2]
[351264491,1738498242459,-1388.0,0.00015698,2]
[351264493,1738498242468,-1388.0,0.00015698,2]
[351264494,1738498242477,-1388.0,0.00015698,2]
[351264496,1738498242487,-1388.0,0.00015698,2]
[351264498,1738498242496,-1388.0,0.00015698,2]
[351264499,1738498242506,-1388.0,0.00015698,2]
[351264501,1738498242515,-1388.0,0.00015698,2]
[351264503,1738498242524,-1388.0,0.00015698,2]
[351264504,1738498242534,-1388.0,0.00015698,2]
[351264506,1738498242544,-1388.0,0.00015698,2]
[351264508,1738498242553,-1388.0,0.00015698,2]
[351264510,1738498242562,-1388.0,0.00015698,2]
[351264512,1738498242572,-1388.0,0.00015698,2]
[351264513,1738498242583,-1388.0,0.00015698,2]
[351264515,1738498242593,-1388.0,0.00015698,2]
[351264517,1738498242603,-1388.0,0.00015698,2]
[351264519,1738498242613,-1388.0,0.00015698,2]
[351264521,1738498242622,-1388.0,0.00015698,2]
[351264522,1738498242631,-1388.0,0.00015698,2]
[351264524,1738498242640,-1388.0,0.00015698,2]
[351264526,1738498242649,-1388.0,0.00015698,2]
[351264528,1738498242659,-291.02310572,0.00015698,2]
[351264529,1738498242668,-2444.0,0.000157,2]
[351264531,1738498242677,-1200.0,0.000157,5]
[351264533,1738498242687,-1231.0,0.000157,2]
[351264535,1738498242696,-10173.81511763,0.00015701,2]
[351264537,1738498242705,-193.8795154,0.00015701,2]
[351264538,1738498242714,-192.29777608,0.00015701,2]
[351264540,1738498242724,-152.0,0.00015709,4]
[351264542,1738498242733,-364.41369004,0.00015753,2]
[351264544,1738498242743,-6520.62014022,0.0001578,2]
[351264546,1738498242752,-7688.99,0.000158,2]
[351264547,1738498242762,-5800.0,0.000158,2]
[351264549,1738498242771,-5800.0,0.000158,2]
[351264552,1738498242780,-1763.24856874,0.000158,2]
[351264554,1738498242789,-1200.0,0.000158,5]
[351264557,1738498242798,-1714172.01060765,0.000158,2]
[351264559,1738498242812,-4546.42487263,0.000158,2]
[351264563,1738498242839,-553.048821,0.000158,2]
[351264565,1738498242851,-802.66496489,0.000158,2]
[351264567,1738498242862,-632.27300002,0.000158,2]
[351264569,1738498242873,-425.1582348,0.000158,2]
[351264600,1738498243553,-33309.93816528,0.00012,2]
[351264601,1738498243563,-291.72409154,0.00015701,2]
[351264602,1738498243573,-243177.58529663,0.000158,2]
[351264603,1738498243583,-10173.81511761,0.00015801,2]
[351264604,1738498243592,-364.41369004,0.00015808,2]
[351264605,1738498243601,-175.85347849,0.00015818,2]
[351264606,1738498243611,-222.220937,0.00015821,2]
[351264607,1738498243621,-694.68,0.00015863,7]
[351264608,1738498243630,-694.68,0.00015863,7]
[351264609,1738498243639,-500.0,0.00015873,2]
[351264610,1738498243649,-500.0,0.00015873,2]
[351264611,1738498243659,-520.80085607,0.00015873,2]
[351264612,1738498243668,-500.0,0.00015873,2]
[351264613,1738498243678,-160.32717605,0.00015873,2]
[351264614,1738498243688,-301.94948668,0.00015873,2]
[351264615,1738498243697,-531.66626485,0.00015873,2]
[351264616,1738498243708,-316.02225814,0.00015873,2]
[351264617,1738498243718,-500.0,0.00015873,2]
[351264618,1738498243727,-500.0,0.00015873,2]
[351264619,1738498243737,-517.26553847,0.00015873,2]
[351264620,1738498243747,-357.89907218,0.00015873,2]
[351264621,1738498243756,-500.0,0.00015873,2]
[351264622,1738498243766,-207.04048661,0.00015873,2]
[351264623,1738498243776,-324.18503729,0.00015873,2]
[351264624,1738498243786,-500.0,0.00015873,2]
[351264625,1738498243795,-500.0,0.00015873,2]
[351264626,1738498243804,-500.0,0.00015873,2]